Departmental Area,Entity,Payment Date,Expense type,Expense Area,Supplier Name,Payment Reference,    Invoice Distribution Amount    ,Description,Supplier Type,Expenditure Type
UK Statistics Family,Office for National Statistics,03/05/2022,Exp - Purchase Of Goods/Services - Contractors,Testing,La International,227751,"3,424.94",Information Management Services,SME,Programme Expenditure
UK Statistics Family,Office for National Statistics,03/05/2022,Exp - Purchase Of Goods/Services - Contractors,Testing,La International,227751,"3,355.20",Information Management Services,SME,Programme Expenditure
UK Statistics Family,Office for National Statistics,03/05/2022,Exp - Purchase Of Goods/Services - Contractors,Testing,La International,227751,"3,184.94",Information Management Services,SME,Programme Expenditure
UK Statistics Family,Office for National Statistics,03/05/2022,Exp - Purchase Of Goods/Services - Contractors,Data Architecture,La International,227751,"10,778.84",Information Management Services,SME,Programme Expenditure
UK Statistics Family,Office for National Statistics,03/05/2022,Exp - Purchase Of Goods/Services - Contractors,Data Architecture,La International,227751,11147.3,Information Management Services,SME,Programme Expenditure
UK Statistics Family,Office for National Statistics,03/05/2022,Exp - Purchase Of Goods/Services - Contractors,CLOUD ARCHITECTURE,La International,227751,"11,021.26",Information Management Services,SME,Programme Expenditure
UK Statistics Family,Office for National Statistics,03/05/2022,Exp - Purchase Of Goods/Services - Contractors,IT Applications,La International,227751,"11,527.06",Information Management Services,SME,Programme Expenditure
UK Statistics Family,Office for National Statistics,03/05/2022,Exp - Purchase Of Goods/Services - IT Contractual Services,Digital Delivery,Methods Business & Digital Technology Ltd,227759,"28,494.00",Information Management Services,Large,Programme Expenditure
UK Statistics Family,Office for National Statistics,03/05/2022,Exp - Short-Term Contract & Agency Staff - Full Cost,Recruitment ,Parity Resources Limited,227763,"1,904.76",Information Management Services,Large,Programme Expenditure
UK Statistics Family,Office for National Statistics,03/05/2022,Exp - Short-Term Contract & Agency Staff - Full Cost,Recruitment ,Parity Resources Limited,227763,732.60,Information Management Services,Large,Programme Expenditure
UK Statistics Family,Office for National Statistics,03/05/2022,Exp - Purchase Of Goods/Services - Contractors,Data Architecture,Parity Resources Limited,227763,"20,147.40",Information Management Services,Large,Programme Expenditure
UK Statistics Family,Office for National Statistics,03/05/2022,Exp - Purchase Of Goods/Services - Contractors,CLOUD ARCHITECTURE,Parity Resources Limited,227763,"2,744.40",Information Management Services,Large,Programme Expenditure
UK Statistics Family,Office for National Statistics,03/05/2022,Exp - Purchase Of Goods/Services - Contractors,CLOUD ARCHITECTURE,Parity Resources Limited,227763,686.10,Information Management Services,Large,Programme Expenditure
UK Statistics Family,Office for National Statistics,03/05/2022,Exp - Purchase Of Goods/Services - Contractors,IT Applications,Parity Resources Limited,227763,"2,178.72",Information Management Services,Large,Programme Expenditure
UK Statistics Family,Office for National Statistics,03/05/2022,Exp - Purchase Of Goods/Services - Contractors,IT Operations,Parity Resources Limited,227763,"25,327.55",Information Management Services,Large,Programme Expenditure
UK Statistics Family,Office for National Statistics,03/05/2022,Exp - Purchase Of Goods/Services - Contractors,Digital Delivery,Parity Resources Limited,227763,"3,096.00",Information Management Services,Large,Programme Expenditure
UK Statistics Family,Office for National Statistics,03/05/2022,Exp - Purchase Of Goods/Services - Contractors,Consultancy Management,Talent International,227779,"16,200.00",Information Management Services,SME,Programme Expenditure
UK Statistics Family,Office for National Statistics,03/05/2022,Exp - Purchase Of Goods/Services - Contractors,Strategy And Architecture,Talent International,227779,"16,800.00",Information Management Services,SME,Programme Expenditure
UK Statistics Family,Office for National Statistics,03/05/2022,Exp - Purchase Of Goods/Services - Contractors,IT Operations,Talent International,227779,8400,Information Management Services,SME,Programme Expenditure
UK Statistics Family,Office for National Statistics,04/05/2022,Buildings Under Construction,Property Newport,Vinci Construction UK Limited,227783,1504290.02,Facilities Mangement Services,Large,Programme Expenditure
UK Statistics Family,Office for National Statistics,04/05/2022,Buildings Under Construction,Property Newport,Vinci Construction UK Limited,227783,"11,770.46",Facilities Mangement Services,Large,Programme Expenditure
UK Statistics Family,Office for National Statistics,04/05/2022,Buildings Under Construction,Property Newport,Vinci Construction UK Limited,227783,"35,875.30",Facilities Mangement Services,Large,Programme Expenditure
UK Statistics Family,Office for National Statistics,04/05/2022,Surveys,ECONOMIC CHANGE,Chamber of Shipping Ltd,227791,"26,640.00",Data Acquisition,SME,Programme Expenditure
UK Statistics Family,Office for National Statistics,05/05/2022,Surveys,Prices Division,Kantar Public UK Ltd.,228046,"223,453.80",Statistical Services,SME,Programme Expenditure
UK Statistics Family,Office for National Statistics,05/05/2022,Exp - Purchase Of Goods/Services - Contractors,Consultancy Management,Concept Information Technology Ltd T/A Concept Resourcing,228049,"2,885.88",Information Management Services,Large,Programme Expenditure
UK Statistics Family,Office for National Statistics,05/05/2022,Exp - Purchase Of Goods/Services - Contractors,Consultancy Management,Concept Information Technology Ltd T/A Concept Resourcing,228049,"16,480.51",Information Management Services,Large,Programme Expenditure
UK Statistics Family,Office for National Statistics,05/05/2022,Exp - Purchase Of Goods/Services - Contractors,Consultancy Management,Concept Information Technology Ltd T/A Concept Resourcing,228049,"10,568.17",Information Management Services,Large,Programme Expenditure
UK Statistics Family,Office for National Statistics,05/05/2022,Exp - Short-Term Contract & Agency Staff - Full Cost,WIDER SURVEILLANCE STUDIES,Concept Information Technology Ltd T/A Concept Resourcing,228049,"2,099.90",Information Management Services,Large,Programme Expenditure
UK Statistics Family,Office for National Statistics,05/05/2022,Exp - Short-Term Contract & Agency Staff - Full Cost,"SUB-NATIONAL STATISTICS AND ANALYSIS
Account	
AccountAutocompletes on TAB	",Concept Information Technology Ltd T/A Concept Resourcing,228049,4567.08,Information Management Services,Large,Programme Expenditure
UK Statistics Family,Office for National Statistics,05/05/2022,Exp - Short-Term Contract & Agency Staff - Full Cost,Ask Business Services,Concept Information Technology Ltd T/A Concept Resourcing,228049,"4,422.24",Information Management Services,Large,Programme Expenditure
UK Statistics Family,Office for National Statistics,05/05/2022,Exp - Short-Term Contract & Agency Staff - Full Cost,Prices Division,Concept Information Technology Ltd T/A Concept Resourcing,228049,"5,171.90",Information Management Services,Large,Programme Expenditure
UK Statistics Family,Office for National Statistics,05/05/2022,Exp - Short-Term Contract & Agency Staff - Full Cost,Prices Division,Concept Information Technology Ltd T/A Concept Resourcing,228049,"2,471.10",Information Management Services,Large,Programme Expenditure
UK Statistics Family,Office for National Statistics,05/05/2022,Exp - Short-Term Contract & Agency Staff - Full Cost,Prices Division,Concept Information Technology Ltd T/A Concept Resourcing,228049,"4,135.11",Information Management Services,Large,Programme Expenditure
UK Statistics Family,Office for National Statistics,05/05/2022,Exp - Short-Term Contract & Agency Staff - Full Cost,Prices Division,Concept Information Technology Ltd T/A Concept Resourcing,228049,"19,769.01",Information Management Services,Large,Programme Expenditure
UK Statistics Family,Office for National Statistics,05/05/2022,Telecoms,IT Operations,Bt Global Services,228054,"47,915.94",Telecommunications,Large,Programme Expenditure
UK Statistics Family,Office for National Statistics,05/05/2022,Exp - Purchase Of Goods/Services - Contractors,Testing,Certes Computing Ltd,228058,"9,253.01",Information Management Services,SME,Programme Expenditure
UK Statistics Family,Office for National Statistics,05/05/2022,Exp - Purchase Of Goods/Services - Contractors,Commercial Services,Certes Computing Ltd,228058,533.73,Information Management Services,SME,Programme Expenditure
UK Statistics Family,Office for National Statistics,05/05/2022,Exp - Purchase Of Goods/Services - Contractors,Best Practice And Impact,Certes Computing Ltd,228058,"19,320.00",Information Management Services,SME,Programme Expenditure
UK Statistics Family,Office for National Statistics,05/05/2022,Exp - Purchase Of Goods/Services - Contractors,Testing,Malikshaw Interim & Executive,228062,"13,566.00",Information Management Services,SME,Programme Expenditure
UK Statistics Family,Office for National Statistics,05/05/2022,Exp - Purchase Of Goods/Services - Contractors,INTEGRATED DATA STRATEGY AND DELIVERY,Malikshaw Interim & Executive,228062,"12,600.00",Information Management Services,SME,Programme Expenditure
UK Statistics Family,Office for National Statistics,05/05/2022,Exp - Short-Term Contract & Agency Staff - Full Cost,Data Architecture,Malikshaw Interim & Executive,228062,879.46,Information Management Services,SME,Programme Expenditure
UK Statistics Family,Office for National Statistics,05/05/2022,Fixtures & Fittings At Cost - Additions,Property Newport,Gresham Office Furniture Limited,228063,"59,220.00",Office Furniture,SME,Programme Expenditure
UK Statistics Family,Office for National Statistics,05/05/2022,Hosting,IT Operations,CTS (Cloud Technology Solutions Ltd),228064,"160,325.82",Information Management Services,Large,Programme Expenditure
UK Statistics Family,Office for National Statistics,05/05/2022,Hosting,CLOUD ARCHITECTURE,Amazon Web Services Inc,228066,"41,384.15",Information Management Services,Large,Programme Expenditure
UK Statistics Family,Office for National Statistics,05/05/2022,Hosting,CDIO UNGP,Amazon Web Services Inc,228066,"13,999.61",Information Management Services,Large,Programme Expenditure
UK Statistics Family,Office for National Statistics,05/05/2022,Hosting,IT Operations,Amazon Web Services Inc,228066,"22,679.31",Information Management Services,Large,Programme Expenditure
UK Statistics Family,Office for National Statistics,05/05/2022,Exp - Purchase Of Goods/Services - Incentive Payments,Survey Management,Sodexo Motivation Solutions U.K. ltd,228067,"10,372.31",Survey Response Incentive Vouchers,Large,Programme Expenditure
UK Statistics Family,Office for National Statistics,05/05/2022,Exp - Purchase Of Goods/Services - Incentive Payments,Survey Management,Sodexo Motivation Solutions U.K. ltd,228067,"75,344.12",Survey Response Incentive Vouchers,Large,Programme Expenditure
UK Statistics Family,Office for National Statistics,05/05/2022,Exp - Purchase Of Goods/Services - Incentive Payments,Survey Management,Sodexo Motivation Solutions U.K. ltd,228067,"3,642.28",Survey Response Incentive Vouchers,Large,Programme Expenditure
UK Statistics Family,Office for National Statistics,05/05/2022,Exp - Permanent UK Staff - PRP Voucher Payments,ONS Corporate Funds,Edenred (UK Group) Limited,228071,"35,950.00",Performance Reward Vouchers,Large,Programme Expenditure
UK Statistics Family,Office for National Statistics,06/05/2022,Exp - Purchase Of Goods/Services - Contractors,Data Architecture,Malikshaw Interim & Executive,228089,"12,118.80",Information Management Services,SME,Programme Expenditure
UK Statistics Family,Office for National Statistics,06/05/2022,Exp - Purchase Of Goods/Services - Contractors,Data As A Service,Malikshaw Interim & Executive,228089,"15,594.00",Information Management Services,SME,Programme Expenditure
UK Statistics Family,Office for National Statistics,06/05/2022,Exp - Purchase Of Goods/Services - Contractors,Data Science Campus,Methods Business & Digital Technology Ltd,228091,"36,945.00",Information Management Services,Large,Programme Expenditure
UK Statistics Family,Office for National Statistics,06/05/2022,Exp - Purchase Of Goods/Services - Incentive Payments,Covid Infection Survey,Sodexo Motivation Solutions U.K. ltd,228092,"1,654.78",Survey Response Incentive Vouchers,Large,Programme Expenditure
UK Statistics Family,Office for National Statistics,06/05/2022,Exp - Purchase Of Goods/Services - Incentive Payments,Covid Infection Survey,Sodexo Motivation Solutions U.K. ltd,228092,"132,068.75",Survey Response Incentive Vouchers,Large,Programme Expenditure
UK Statistics Family,Office for National Statistics,06/05/2022,Exp - Purchase Of Goods/Services - Contractors,Data Architecture,LA FOSSE ASSOCIATES LIMITED,228093,"25,920.00",Information Management Services,Large,Programme Expenditure
UK Statistics Family,Office for National Statistics,06/05/2022,Exp - Purchase Of Goods/Services - Contractors,Business Architecture,Talent International,228097,"13,591.88",Information Management Services,SME,Programme Expenditure
UK Statistics Family,Office for National Statistics,06/05/2022,Exp - Purchase Of Goods/Services - Contractors,Testing,Talent International,228097,"12,420.00",Information Management Services,SME,Programme Expenditure
UK Statistics Family,Office for National Statistics,06/05/2022,Exp - Purchase Of Goods/Services - Contractors,Consultancy Management,Talent International,228097,"3,600.00",Information Management Services,SME,Programme Expenditure
UK Statistics Family,Office for National Statistics,06/05/2022,Exp - Purchase Of Goods/Services - Contractors,Consultancy Management,Talent International,228097,"8,100.00",Information Management Services,SME,Programme Expenditure
UK Statistics Family,Office for National Statistics,06/05/2022,Exp - Purchase Of Goods/Services - Contractors,Consultancy Management,Talent International,228097,"8,100.00",Information Management Services,SME,Programme Expenditure
UK Statistics Family,Office for National Statistics,06/05/2022,Exp - Purchase Of Goods/Services - Contractors,Digital Publishing,Talent International,228097,"2,879.95",Information Management Services,SME,Programme Expenditure
UK Statistics Family,Office for National Statistics,06/05/2022,Exp - Short-Term Contract & Agency Staff - Full Cost,Strategy And Engagement,Talent International,228097,648.42,Information Management Services,SME,Programme Expenditure
UK Statistics Family,Office for National Statistics,06/05/2022,Exp - Short-Term Contract & Agency Staff - Full Cost,Best Practice And Impact,Talent International,228097,759.41,Information Management Services,SME,Programme Expenditure
UK Statistics Family,Office for National Statistics,06/05/2022,Exp - Purchase Of Goods/Services - Contractors,Tech Delivery Next Gen IT And Infrastructure,Talent International,228097,"2,879.95",Information Management Services,SME,Programme Expenditure
UK Statistics Family,Office for National Statistics,06/05/2022,Exp - Short-Term Contract & Agency Staff - Full Cost,Data Science Campus,Talent International,228097,"1,101.60",Information Management Services,SME,Programme Expenditure
UK Statistics Family,Office for National Statistics,06/05/2022,Exp - Purchase Of Goods/Services - Contractors,Data Science Campus,Talent International,228097,"3,360.00",Information Management Services,SME,Programme Expenditure
UK Statistics Family,Office for National Statistics,09/05/2022,Exp - Purchase Of Goods/Services - IT Contractual Services,IT Operations,Ibm United Kingdom Ltd,228288,"47,243.40",Information Management Services,Large,Programme Expenditure
UK Statistics Family,Office for National Statistics,09/05/2022,Exp - Purchase Of Goods/Services - IT Contractual Services,Security Operations,Scc,228289,"13,905.00",Information Management Services,Large,Programme Expenditure
UK Statistics Family,Office for National Statistics,09/05/2022,Exp - Purchase Of Goods/Services - IT Contractual Services,CDIO UNGP,Scc,228289,"34,762.50",Information Management Services,Large,Programme Expenditure
UK Statistics Family,Office for National Statistics,09/05/2022,Software Licences At Cost - Additions,IT Operations,Phoenix Software Ltd,228292,"45,120.00",Software Licenses,SME,Programme Expenditure
UK Statistics Family,Office for National Statistics,09/05/2022,Postage,Survey Processing Centre,DHL Parcel Ltd,228293,83111.13,Postage Services,Large,Programme Expenditure
UK Statistics Family,Office for National Statistics,09/05/2022,Exp - Purchase Of Goods/Services - Contractors,Business Architecture,Certes Computing Ltd,228298,"11,700.00",Information Management Services,SME,Programme Expenditure
UK Statistics Family,Office for National Statistics,09/05/2022,Exp - Purchase Of Goods/Services - Contractors,Testing,Certes Computing Ltd,228298,"3,266.52",Information Management Services,SME,Programme Expenditure
UK Statistics Family,Office for National Statistics,09/05/2022,Exp - Purchase Of Goods/Services - Contractors,Strategy And Architecture,Certes Computing Ltd,228298,"11,154.47",Information Management Services,SME,Programme Expenditure
UK Statistics Family,Office for National Statistics,09/05/2022,Exp - Purchase Of Goods/Services - Contractors,Tech Delivery Legacy Sp,Certes Computing Ltd,228298,"8,400.00",Information Management Services,SME,Programme Expenditure
UK Statistics Family,Office for National Statistics,09/05/2022,Exp - Purchase Of Goods/Services - Contractors,Tech Delivery Legacy Sp,Certes Computing Ltd,228298,"3,360.00",Information Management Services,SME,Programme Expenditure
UK Statistics Family,Office for National Statistics,09/05/2022,Exp - Purchase Of Goods/Services - Contractors,Data Architecture,La International,228299,"29,208.80",Information Management Services,SME,Programme Expenditure
UK Statistics Family,Office for National Statistics,09/05/2022,Exp - Purchase Of Goods/Services - Contractors,IT Applications,La International,228299,"7,464.66",Information Management Services,SME,Programme Expenditure
UK Statistics Family,Office for National Statistics,09/05/2022,Exp - Purchase Of Goods/Services - Contractors,IT Operations,La International,228299,"6,920.32",Information Management Services,SME,Programme Expenditure
UK Statistics Family,Office for National Statistics,09/05/2022,Exp - Short-Term Contract & Agency Staff - Full Cost,WIDER SURVEILLANCE STUDIES,Malikshaw Interim & Executive,228305,"3,018.17",Information Management Services,SME,Programme Expenditure
UK Statistics Family,Office for National Statistics,09/05/2022,Exp - Short-Term Contract & Agency Staff - Full Cost,Data Architecture,Malikshaw Interim & Executive,228305,29164.25,Information Management Services,SME,Programme Expenditure
UK Statistics Family,Office for National Statistics,09/05/2022,Hosting,CLOUD ARCHITECTURE,CTS (Cloud Technology Solutions Ltd),228307,"27,935.26",Information Management Services,Large,Programme Expenditure
UK Statistics Family,Office for National Statistics,09/05/2022,Hosting,CLOUD ARCHITECTURE,CTS (Cloud Technology Solutions Ltd),228307,"160,402.13",Information Management Services,Large,Programme Expenditure
UK Statistics Family,Office for National Statistics,09/05/2022,Exp - Purchase Of Goods And Services Consultants,Digital Media,Methods Business & Digital Technology Ltd,228308,"143,124.00",Information Management Services,Large,Programme Expenditure
UK Statistics Family,Office for National Statistics,09/05/2022,Exp - Purchase Of Goods/Services - IT Contractual Services,Digital Delivery,Methods Business & Digital Technology Ltd,228308,"55,290.00",Information Management Services,Large,Programme Expenditure
UK Statistics Family,Office for National Statistics,09/05/2022,Exp - Short-Term Contract & Agency Staff - Full Cost,INTEGRATED DATA STRATEGY AND DELIVERY,SmartSourcing Ltd,228311,"1,065.60",Information Management Services,SME,Programme Expenditure
UK Statistics Family,Office for National Statistics,09/05/2022,Exp - Purchase Of Goods/Services - Contractors,Data Architecture,SmartSourcing Ltd,228311,"6,473.86",Information Management Services,SME,Programme Expenditure
UK Statistics Family,Office for National Statistics,09/05/2022,Exp - Purchase Of Goods/Services - Contractors,Tech Delivery Next Gen IT And Infrastructure,SmartSourcing Ltd,228311,"4,675.39",Information Management Services,SME,Programme Expenditure
UK Statistics Family,Office for National Statistics,09/05/2022,Exp - Purchase Of Goods/Services - Contractors,IT Operations,SmartSourcing Ltd,228311,"28,350.05",Information Management Services,SME,Programme Expenditure
UK Statistics Family,Office for National Statistics,09/05/2022,Exp - Purchase Of Goods/Services - Contractors,Data Science Campus,SmartSourcing Ltd,228311,3236.93,Information Management Services,SME,Programme Expenditure
UK Statistics Family,Office for National Statistics,09/05/2022,Exp - Purchase Of Goods/Services - Contractors,CLOUD ARCHITECTURE,Parity Resources Limited,228312,"6,174.90",Information Management Services,Large,Programme Expenditure
UK Statistics Family,Office for National Statistics,09/05/2022,Exp - Purchase Of Goods/Services - Contractors,IT Operations,Parity Resources Limited,228312,"19,010.40",Information Management Services,Large,Programme Expenditure
UK Statistics Family,Office for National Statistics,09/05/2022,Exp - Purchase Of Goods/Services - Contractors,Digital Publishing,Talent International,228317,"16,532.40",Information Management Services,SME,Programme Expenditure
UK Statistics Family,Office for National Statistics,09/05/2022,Exp - Short-Term Contract & Agency Staff - Full Cost,Data Architecture,Talent International,228317,"12,930.51",Information Management Services,SME,Programme Expenditure
UK Statistics Family,Office for National Statistics,09/05/2022,Exp - Purchase Of Goods/Services - Contractors,Tech Delivery Legacy Sp,Talent International,228317,"28,536.00",Information Management Services,SME,Programme Expenditure
UK Statistics Family,Office for National Statistics,09/05/2022,Exp - Purchase Of Goods/Services - Contractors,IT Operations,Talent International,228317,17940,Information Management Services,SME,Programme Expenditure
UK Statistics Family,Office for National Statistics,09/05/2022,Exp - Purchase Of Goods/Services - Contractors,Digital Delivery,Talent International,228317,"16,178.40",Information Management Services,SME,Programme Expenditure
UK Statistics Family,Office for National Statistics,09/05/2022,Exp - Purchase Of Goods/Services - Contractors,Digital Delivery,Talent International,228317,"6,048.00",Information Management Services,SME,Programme Expenditure
UK Statistics Family,Office for National Statistics,09/05/2022,Exp - Purchase Of Goods/Services - Contractors,Testing,LA FOSSE ASSOCIATES LIMITED,228322,"13,080.00",Information Management Services,Large,Programme Expenditure
UK Statistics Family,Office for National Statistics,09/05/2022,Exp - Purchase Of Goods/Services - Contractors,Consultancy Management,LA FOSSE ASSOCIATES LIMITED,228322,"13,248.00",Information Management Services,Large,Programme Expenditure
UK Statistics Family,Office for National Statistics,09/05/2022,Exp - Purchase Of Goods/Services - Contractors,Consultancy Management,LA FOSSE ASSOCIATES LIMITED,228322,"23,460.00",Information Management Services,Large,Programme Expenditure
UK Statistics Family,Office for National Statistics,09/05/2022,Exp - Purchase Of Goods/Services - Contractors,WIDER SURVEILLANCE STUDIES,LA FOSSE ASSOCIATES LIMITED,228322,"6,600.00",Information Management Services,Large,Programme Expenditure
UK Statistics Family,Office for National Statistics,09/05/2022,Exp - Purchase Of Goods/Services - Contractors,Digital Publishing,LA FOSSE ASSOCIATES LIMITED,228322,"10,440.00",Information Management Services,Large,Programme Expenditure
UK Statistics Family,Office for National Statistics,10/05/2022,Exp - Purchase Of Goods/Services - Contractors,IT Operations,Ibm United Kingdom Ltd,228480,74496,Information Management Services,Large,Programme Expenditure
UK Statistics Family,Office for National Statistics,10/05/2022,Exp - Purchase Of Goods/Services - Contractors,Data Architecture,La International,228485,"2,694.71",Information Management Services,SME,Programme Expenditure
UK Statistics Family,Office for National Statistics,10/05/2022,Exp - Purchase Of Goods/Services - Contractors,Tech Delivery Legacy Sp,La International,228485,"17,250.24",Information Management Services,SME,Programme Expenditure
UK Statistics Family,Office for National Statistics,10/05/2022,Exp - Purchase Of Goods/Services - Contractors,Tech Delivery Legacy Sp,La International,228485,"4,928.64",Information Management Services,SME,Programme Expenditure
UK Statistics Family,Office for National Statistics,10/05/2022,Exp - Purchase Of Goods/Services - Contractors,Tech Delivery Data As A Platform,La International,228485,"10,829.06",Information Management Services,SME,Programme Expenditure
UK Statistics Family,Office for National Statistics,10/05/2022,Exp - Purchase Of Goods/Services - Contractors,Tech Delivery Data As A Platform,La International,228485,"6,369.88",Information Management Services,SME,Programme Expenditure
UK Statistics Family,Office for National Statistics,10/05/2022,Exp - Purchase Of Goods/Services - Contractors,IT Applications,La International,228485,"4,101.18",Information Management Services,SME,Programme Expenditure
UK Statistics Family,Office for National Statistics,10/05/2022,Exp - Short-Term Contract & Agency Staff - Full Cost,Strategy And Engagement,Malikshaw Interim & Executive,228491,"3,735.88",Information Management Services,SME,Programme Expenditure
UK Statistics Family,Office for National Statistics,10/05/2022,Exp - Purchase Of Goods/Services - Contractors,IT Operations,Malikshaw Interim & Executive,228491,"17,738.40",Information Management Services,SME,Programme Expenditure
UK Statistics Family,Office for National Statistics,10/05/2022,Exp - Purchase Of Goods/Services - Contractors,Digital Delivery,Malikshaw Interim & Executive,228491,"14,774.40",Information Management Services,SME,Programme Expenditure
UK Statistics Family,Office for National Statistics,10/05/2022,Exp - Purchase Of Goods/Services - Contractors,Digital Publishing,Talent International,228499,"28,896.00",Information Management Services,SME,Programme Expenditure
UK Statistics Family,Office for National Statistics,10/05/2022,Exp - Short-Term Contract & Agency Staff - Full Cost,Strategy And Engagement,Talent International,228499,4538.93,Information Management Services,SME,Programme Expenditure
UK Statistics Family,Office for National Statistics,10/05/2022,Exp - Short-Term Contract & Agency Staff - Full Cost,Recruitment ,Talent International,228499,"3,004.48",Information Management Services,SME,Programme Expenditure
UK Statistics Family,Office for National Statistics,10/05/2022,Exp - Purchase Of Goods/Services - Contractors,Strategy And Architecture,Talent International,228499,"21,165.00",Information Management Services,SME,Programme Expenditure
UK Statistics Family,Office for National Statistics,10/05/2022,Exp - Purchase Of Goods/Services - Contractors,IT Applications,Talent International,228499,"34,472.40",Information Management Services,SME,Programme Expenditure
UK Statistics Family,Office for National Statistics,10/05/2022,Exp - Purchase Of Goods/Services - Contractors,IT Operations,Talent International,228499,"18,874.80",Information Management Services,SME,Programme Expenditure
UK Statistics Family,Office for National Statistics,10/05/2022,Exp - Purchase Of Goods/Services - Contractors,IT Operations,Talent International,228499,"33,120.00",Information Management Services,SME,Programme Expenditure
UK Statistics Family,Office for National Statistics,10/05/2022,Exp - Purchase Of Goods/Services - Contractors,Digital Delivery,Talent International,228499,"17,940.00",Information Management Services,SME,Programme Expenditure
UK Statistics Family,Office for National Statistics,10/05/2022,Exp - Purchase Of Goods/Services - Contractors,INTEGRATED DATA STRATEGY AND DELIVERY,LA FOSSE ASSOCIATES LIMITED,228500,"14,430.00",Information Management Services,Large,Programme Expenditure
UK Statistics Family,Office for National Statistics,10/05/2022,Exp - Purchase Of Goods/Services - Contractors,BUSINESS STRATEGY PERFORMANCE AND PMO,LA FOSSE ASSOCIATES LIMITED,228500,"18,720.00",Information Management Services,Large,Programme Expenditure
UK Statistics Family,Office for National Statistics,10/05/2022,Exp - Purchase Of Goods And Services Consultants,Security Advisory,Bridewell Consulting Limited,228502,"148,200.00",Consultancy,SME,Programme Expenditure
UK Statistics Family,Office for National Statistics,10/05/2022,"ICT Outsourcing, Maintenance And Support",Digital Publishing,Mekon LTD,228504,"83,220.00",Information Management Services,Large,Programme Expenditure
UK Statistics Family,Office for National Statistics,10/05/2022,Other Goods And Services,Covid Infection Survey,University of Oxford,228508,"112,248.00",Statistical Services,Large,Programme Expenditure
UK Statistics Family,Office for National Statistics,11/05/2022,Exp - Short-Term Contract & Agency Staff - Full Cost,Business Change Support,Concept Information Technology Ltd T/A Concept Resourcing,228521,"3,706.68",Information Management Services,Large,Programme Expenditure
UK Statistics Family,Office for National Statistics,11/05/2022,Exp - Short-Term Contract & Agency Staff - Full Cost,International Trade And Transactions,Concept Information Technology Ltd T/A Concept Resourcing,228521,"3,293.24",Information Management Services,Large,Programme Expenditure
UK Statistics Family,Office for National Statistics,11/05/2022,Exp - Short-Term Contract & Agency Staff - Full Cost,International Trade And Transactions,Concept Information Technology Ltd T/A Concept Resourcing,228521,"20,976.56",Information Management Services,Large,Programme Expenditure
UK Statistics Family,Office for National Statistics,11/05/2022,Exp - Short-Term Contract & Agency Staff - Full Cost,Business Statistics Transformation,Concept Information Technology Ltd T/A Concept Resourcing,228521,"3,294.64",Information Management Services,Large,Programme Expenditure
UK Statistics Family,Office for National Statistics,11/05/2022,Exp - Short-Term Contract & Agency Staff - Full Cost,Labour Market,Concept Information Technology Ltd T/A Concept Resourcing,228521,"2,717.88",Information Management Services,Large,Programme Expenditure
UK Statistics Family,Office for National Statistics,11/05/2022,"ICT Outsourcing, Maintenance And Support",Population Statistics Div,Scc,228522,69.23,Software Licenses,Large,Programme Expenditure
UK Statistics Family,Office for National Statistics,11/05/2022,End User Software And Hardware,IT Operations,Scc,228522,"201,012.99",Software Licenses,Large,Programme Expenditure
UK Statistics Family,Office for National Statistics,11/05/2022,Exp - Purchase Of Goods/Services - Contractors,Strategy And Architecture,Certes Computing Ltd,228525,"14,154.54",Information Management Services,SME,Programme Expenditure
UK Statistics Family,Office for National Statistics,11/05/2022,Exp - Purchase Of Goods/Services - Contractors,IT Operations,Certes Computing Ltd,228525,"11,224.73",Information Management Services,SME,Programme Expenditure
UK Statistics Family,Office for National Statistics,11/05/2022,End User Software And Hardware,IT Operations,Cdw Limited,228536,"42,857.15",Software Licenses,Large,Programme Expenditure
UK Statistics Family,Office for National Statistics,11/05/2022,Exp - Purchase Of Goods/Services - IT Contractual Services,CDIO UNGP,Digital Modus Ltd,228538,"376,740.00",Information Management Services,SME,Programme Expenditure
UK Statistics Family,Office for National Statistics,12/05/2022,Exp - Short-Term Contract & Agency Staff - Full Cost,Business Change Support,Concept Information Technology Ltd T/A Concept Resourcing,228796,"3,299.60",Information Management Services,Large,Programme Expenditure
UK Statistics Family,Office for National Statistics,12/05/2022,Exp - Short-Term Contract & Agency Staff - Full Cost,Business Change Support,Concept Information Technology Ltd T/A Concept Resourcing,228796,"3,594.46",Information Management Services,Large,Programme Expenditure
UK Statistics Family,Office for National Statistics,12/05/2022,Exp - Short-Term Contract & Agency Staff - Full Cost,Business Change Support,Concept Information Technology Ltd T/A Concept Resourcing,228796,"6,561.06",Information Management Services,Large,Programme Expenditure
UK Statistics Family,Office for National Statistics,12/05/2022,Exp - Short-Term Contract & Agency Staff - Full Cost,N A Coordination,Concept Information Technology Ltd T/A Concept Resourcing,228796,"3,500.76",Information Management Services,Large,Programme Expenditure
UK Statistics Family,Office for National Statistics,12/05/2022,Exp - Short-Term Contract & Agency Staff - Full Cost,Business Architecture Transformation And Statistical Strategy,Concept Information Technology Ltd T/A Concept Resourcing,228796,"3,304.58",Information Management Services,Large,Programme Expenditure
UK Statistics Family,Office for National Statistics,12/05/2022,Exp - Short-Term Contract & Agency Staff - Full Cost,Business Architecture Transformation And Statistical Strategy,Concept Information Technology Ltd T/A Concept Resourcing,228796,"2,882.98",Information Management Services,Large,Programme Expenditure
UK Statistics Family,Office for National Statistics,12/05/2022,Exp - Short-Term Contract & Agency Staff - Full Cost,Public Sector And Households,Concept Information Technology Ltd T/A Concept Resourcing,228796,"3,450.06",Information Management Services,Large,Programme Expenditure
UK Statistics Family,Office for National Statistics,12/05/2022,Exp - Short-Term Contract & Agency Staff - Full Cost,Public Sector And Households,Concept Information Technology Ltd T/A Concept Resourcing,228796,"8,231.04",Information Management Services,Large,Programme Expenditure
UK Statistics Family,Office for National Statistics,12/05/2022,Exp - Short-Term Contract & Agency Staff - Full Cost,Public Sector And Households,Concept Information Technology Ltd T/A Concept Resourcing,228796,"17,526.06",Information Management Services,Large,Programme Expenditure
UK Statistics Family,Office for National Statistics,12/05/2022,Exp - Short-Term Contract & Agency Staff - Full Cost,Public Sector And Households,Concept Information Technology Ltd T/A Concept Resourcing,228796,"2,018.89",Information Management Services,Large,Programme Expenditure
UK Statistics Family,Office for National Statistics,12/05/2022,Exp - Short-Term Contract & Agency Staff - Full Cost,Social Surveys Division,Concept Information Technology Ltd T/A Concept Resourcing,228796,"6,383.73",Information Management Services,Large,Programme Expenditure
UK Statistics Family,Office for National Statistics,12/05/2022,IT (Owned) At Cost - Additions,IT Operations,Scc,228799,"34,842.85",Computers and Peripherals,Large,Programme Expenditure
UK Statistics Family,Office for National Statistics,12/05/2022,Travel And Subsistence,Corporate Centre,Corporate Travel Management ,228800,"26,604.80",Travel and Accommodation,SME,Programme Expenditure
UK Statistics Family,Office for National Statistics,12/05/2022,IT (Owned) At Cost - Additions,CLOUD ARCHITECTURE,Centerprise International Ltd,228803,"122,493.60",Software Licenses,Large,Programme Expenditure
UK Statistics Family,Office for National Statistics,12/05/2022,Exp - Purchase Of Goods/Services - Contractors,IT Applications,Certes Computing Ltd,228804,"13,678.63",Information Management Services,SME,Programme Expenditure
UK Statistics Family,Office for National Statistics,12/05/2022,Exp - Purchase Of Goods/Services - Contractors,Digital Delivery,Certes Computing Ltd,228804,"13,678.63",Information Management Services,SME,Programme Expenditure
UK Statistics Family,Office for National Statistics,12/05/2022,Exp - Purchase Of Goods/Services - Contractors,Digital Delivery,Certes Computing Ltd,228804,"11,977.45",Information Management Services,SME,Programme Expenditure
UK Statistics Family,Office for National Statistics,12/05/2022,Exp - Purchase Of Goods/Services - Contractors,Testing,La International,228805,"3,332.02",Information Management Services,SME,Programme Expenditure
UK Statistics Family,Office for National Statistics,12/05/2022,Exp - Purchase Of Goods/Services - Contractors,Testing,La International,228805,"6,443.78",Information Management Services,SME,Programme Expenditure
UK Statistics Family,Office for National Statistics,12/05/2022,Exp - Purchase Of Goods/Services - Contractors,Testing,La International,228805,"4,194.00",Information Management Services,SME,Programme Expenditure
UK Statistics Family,Office for National Statistics,12/05/2022,Exp - Purchase Of Goods/Services - Contractors,Testing,La International,228805,"2,162.62",Information Management Services,SME,Programme Expenditure
UK Statistics Family,Office for National Statistics,12/05/2022,Exp - Purchase Of Goods/Services - Contractors,Testing,La International,228805,"12,311.22",Information Management Services,SME,Programme Expenditure
UK Statistics Family,Office for National Statistics,12/05/2022,Exp - Purchase Of Goods/Services - Contractors,Data Architecture,La International,228805,"4,281.18",Information Management Services,SME,Programme Expenditure
UK Statistics Family,Office for National Statistics,12/05/2022,Exp - Purchase Of Goods/Services - Contractors,Tech Delivery Legacy Sp,La International,228805,"6,160.80",Information Management Services,SME,Programme Expenditure
UK Statistics Family,Office for National Statistics,12/05/2022,Exp - Purchase Of Goods/Services - Contractors,Tech Delivery Data As A Platform,La International,228805,"3,981.18",Information Management Services,SME,Programme Expenditure
UK Statistics Family,Office for National Statistics,12/05/2022,"ICT Outsourcing, Maintenance And Support",Interviewer Support,Totalmobile Ltd,228806,"133,140.00",Software Licenses,SME,Programme Expenditure
UK Statistics Family,Office for National Statistics,12/05/2022,Exp - Purchase Of Goods/Services - Incentive Payments,Covid Infection Survey,Sodexo Motivation Solutions U.K. ltd,228810,"112,860.00",Survey Response Incentive Vouchers,Large,Programme Expenditure
UK Statistics Family,Office for National Statistics,12/05/2022,Exp - Purchase Of Goods/Services - Contractors,CLOUD ARCHITECTURE,LA FOSSE ASSOCIATES LIMITED,228811,900.00,Information Management Services,Large,Programme Expenditure
UK Statistics Family,Office for National Statistics,12/05/2022,Exp - Purchase Of Goods/Services - Contractors,CLOUD ARCHITECTURE,LA FOSSE ASSOCIATES LIMITED,228811,"20,700.00",Information Management Services,Large,Programme Expenditure
UK Statistics Family,Office for National Statistics,12/05/2022,Exp - Purchase Of Goods/Services - Contractors,CLOUD ARCHITECTURE,LA FOSSE ASSOCIATES LIMITED,228811,"9,900.00",Information Management Services,Large,Programme Expenditure
UK Statistics Family,Office for National Statistics,12/05/2022,Exp - Purchase Of Goods/Services - Contractors,Digital Delivery,LA FOSSE ASSOCIATES LIMITED,228811,720.00,Information Management Services,Large,Programme Expenditure
UK Statistics Family,Office for National Statistics,12/05/2022,Exp - Purchase Of Goods/Services - Contractors,Digital Delivery,LA FOSSE ASSOCIATES LIMITED,228811,"15,840.00",Information Management Services,Large,Programme Expenditure
UK Statistics Family,Office for National Statistics,12/05/2022,Exp - Short-Term Contract & Agency Staff - Full Cost,Business Architecture Transformation And Statistical Strategy,Parity Resources Limited,228815,"7,945.20",Information Management Services,Large,Programme Expenditure
UK Statistics Family,Office for National Statistics,12/05/2022,Exp - Purchase Of Goods/Services - Contractors,Commercial Services,Parity Resources Limited,228815,416.52,Information Management Services,Large,Programme Expenditure
UK Statistics Family,Office for National Statistics,12/05/2022,Exp - Purchase Of Goods/Services - Contractors,CLOUD ARCHITECTURE,Parity Resources Limited,228815,"3,430.50",Information Management Services,Large,Programme Expenditure
UK Statistics Family,Office for National Statistics,12/05/2022,Exp - Purchase Of Goods/Services - Contractors,IT Applications,Parity Resources Limited,228815,"3,812.76",Information Management Services,Large,Programme Expenditure
UK Statistics Family,Office for National Statistics,12/05/2022,Exp - Purchase Of Goods/Services - Contractors,IT Operations,Parity Resources Limited,228815,"21,770.70",Information Management Services,Large,Programme Expenditure
UK Statistics Family,Office for National Statistics,12/05/2022,Exp - Short-Term Contract & Agency Staff - Full Cost,Business Change Support,Talent International,228817,"13,440.00",Information Management Services,SME,Programme Expenditure
UK Statistics Family,Office for National Statistics,12/05/2022,Exp - Purchase Of Goods And Services Consultants,Business Architecture Transformation And Statistical Strategy,Talent International,228817,"16,848.00",Information Management Services,SME,Programme Expenditure
UK Statistics Family,Office for National Statistics,12/05/2022,Exp - Purchase Of Goods/Services - Contractors,INTEGRATED DATA STRATEGY AND DELIVERY,Talent International,228817,"11,730.00",Information Management Services,SME,Programme Expenditure
UK Statistics Family,Office for National Statistics,12/05/2022,Exp - Purchase Of Goods/Services - Contractors,CLOUD ARCHITECTURE,Talent International,228817,"3,120.00",Information Management Services,SME,Programme Expenditure
UK Statistics Family,Office for National Statistics,12/05/2022,Exp - Purchase Of Goods/Services - Contractors,CLOUD ARCHITECTURE,Talent International,228817,"14,820.00",Information Management Services,SME,Programme Expenditure
UK Statistics Family,Office for National Statistics,13/05/2022,Exp - Purchase Of Goods/Services - Accommodation & Bldng Management - Miscellaneous Minor Works,Property Newport,Vinci Construction UK Limited,228823,"7,474.90",Facilities Mangement Services,Large,Programme Expenditure
UK Statistics Family,Office for National Statistics,13/05/2022,Buildings Under Construction,Property Titchfield,Vinci Construction UK Limited,228823,"68,048.40",Facilities Mangement Services,Large,Programme Expenditure
UK Statistics Family,Office for National Statistics,13/05/2022,Exp - Purchase Of Goods/Services - Accommodation & Bldng Management - Miscellaneous Minor Works,Property Titchfield,Vinci Construction UK Limited,228823,"1,138.82",Facilities Mangement Services,Large,Programme Expenditure
UK Statistics Family,Office for National Statistics,13/05/2022,FM Contract Payments,Property Newport,Pitney Bowes Ltd,228825,"59,823.82",Postage Services,Large,Programme Expenditure
UK Statistics Family,Office for National Statistics,13/05/2022,Exp - Purchase Of Goods/Services - IT Contractual Services,Tech Delivery Data As A Platform,Insight Direct,228837,"70,998.26",Information Management Services,Large,Programme Expenditure
UK Statistics Family,Office for National Statistics,16/05/2022,Exp - Purchase Of Goods/Services - Contractors,Testing,La International,229021,"10,514.81",Information Management Services,SME,Programme Expenditure
UK Statistics Family,Office for National Statistics,16/05/2022,Exp - Purchase Of Goods/Services - Contractors,Testing,La International,229021,"3,355.20",Information Management Services,SME,Programme Expenditure
UK Statistics Family,Office for National Statistics,16/05/2022,Exp - Purchase Of Goods/Services - Contractors,Testing,La International,229021,"7,089.90",Information Management Services,SME,Programme Expenditure
UK Statistics Family,Office for National Statistics,16/05/2022,Exp - Purchase Of Goods/Services - Contractors,Testing,La International,229021,"3,184.94",Information Management Services,SME,Programme Expenditure
UK Statistics Family,Office for National Statistics,16/05/2022,Exp - Purchase Of Goods/Services - Contractors,Consultancy Management,La International,229021,"1,435.32",Information Management Services,SME,Programme Expenditure
UK Statistics Family,Office for National Statistics,16/05/2022,Exp - Purchase Of Goods/Services - Contractors,Digital Publishing,La International,229021,"15,810.96",Information Management Services,SME,Programme Expenditure
UK Statistics Family,Office for National Statistics,16/05/2022,Exp - Purchase Of Goods/Services - Contractors,IT Applications,La International,229021,"7,464.66",Information Management Services,SME,Programme Expenditure
UK Statistics Family,Office for National Statistics,16/05/2022,Accommodation & Building Management,Property Christchurch,"Bournemouth, Christchurch and Poole Council",229022,"124,416.00",Non-domestic Rates,Large,Programme Expenditure
UK Statistics Family,Office for National Statistics,16/05/2022,EXP - PURCHASE OF GOODS/SERVICES -  NON IT CONTRACTUAL PAYMENTS,Security And Information Management Saim,Cabinet Office,229028,"98,400.00",Recruitment Services,Large,Programme Expenditure
UK Statistics Family,Office for National Statistics,16/05/2022,Exp - Seconded UK Staff - Basic Salary,FAST STREAM RECHARGES - CABINET OFFICE,Cabinet Office,229028,"1,000.00",Fast Stream Services,Large,Programme Expenditure
UK Statistics Family,Office for National Statistics,17/05/2022,Exp - Purchase Of Goods And Services Consultants,Sustainability And Inequalities,Ricardo-AEA Ltd,229122,63942.36,Data Acquisition,SME,Programme Expenditure
UK Statistics Family,Office for National Statistics,17/05/2022,Accommodation & Building Management,Property London,Westminster City Council,229123,"159,227.60",Non-domestic Rates,Large,Programme Expenditure
UK Statistics Family,Office for National Statistics,17/05/2022,Surveys,Interview Management IPS,Nisra,229125,"107,515.20",Statistical Services,Large,Programme Expenditure
UK Statistics Family,Office for National Statistics,17/05/2022,Other Professional Services,Internal Audit,Pricewaterhousecoopers Llp,229129,"87,276.00",Consultancy,Large,Programme Expenditure
UK Statistics Family,Office for National Statistics,18/05/2022,Exp - Purchase Of Goods/Services - IT Contractual Services,Strategy And Architecture,Ibm United Kingdom Ltd,229146,"13,344.00",Information Management Services,Large,Programme Expenditure
UK Statistics Family,Office for National Statistics,18/05/2022,Exp - Purchase Of Goods/Services - Contractors,IT Operations,Ibm United Kingdom Ltd,229146,"25,344.00",Information Management Services,Large,Programme Expenditure
UK Statistics Family,Office for National Statistics,18/05/2022,"ICT Outsourcing, Maintenance And Support",IT Operations,Ibm United Kingdom Ltd,229146,"26,107.20",Information Management Services,Large,Programme Expenditure
UK Statistics Family,Office for National Statistics,18/05/2022,Exp - Purchase Of Goods/Services - IT Contractual Services,IT Operations,Ibm United Kingdom Ltd,229146,"13,056.00",Information Management Services,Large,Programme Expenditure
UK Statistics Family,Office for National Statistics,18/05/2022,Exp - Purchase Of Goods/Services - Contractors,Testing,La International,229148,"12,407.30",Information Management Services,SME,Programme Expenditure
UK Statistics Family,Office for National Statistics,18/05/2022,Exp - Purchase Of Goods/Services - Contractors,Testing,La International,229148,"1,297.56",Information Management Services,SME,Programme Expenditure
UK Statistics Family,Office for National Statistics,18/05/2022,Exp - Purchase Of Goods/Services - Contractors,Testing,La International,229148,"1,297.57",Information Management Services,SME,Programme Expenditure
UK Statistics Family,Office for National Statistics,18/05/2022,Exp - Purchase Of Goods/Services - Contractors,Testing,La International,229148,"3,332.02",Information Management Services,SME,Programme Expenditure
UK Statistics Family,Office for National Statistics,18/05/2022,Exp - Purchase Of Goods/Services - Contractors,CLOUD ARCHITECTURE,La International,229148,7497.04,Information Management Services,SME,Programme Expenditure
UK Statistics Family,Office for National Statistics,18/05/2022,Exp - Purchase Of Goods/Services - Contractors,Strategy And Architecture,LA FOSSE ASSOCIATES LIMITED,229154,"18,900.00",Information Management Services,Large,Programme Expenditure
UK Statistics Family,Office for National Statistics,18/05/2022,Exp - Purchase Of Goods/Services - Contractors,Strategy And Architecture,LA FOSSE ASSOCIATES LIMITED,229154,"29,568.00",Information Management Services,Large,Programme Expenditure
UK Statistics Family,Office for National Statistics,18/05/2022,Exp - Purchase Of Goods/Services - Incentive Payments,Survey Management,Banner Group Ltd,229156,"78,900.00",Stationery,SME,Programme Expenditure
UK Statistics Family,Office for National Statistics,18/05/2022,Exp - Purchase Of Goods/Services - Contractors,Covid Infection Survey,Parity Resources Limited,229157,4071.57,Information Management Services,Large,Programme Expenditure
UK Statistics Family,Office for National Statistics,18/05/2022,Exp - Purchase Of Goods/Services - Contractors,Covid Infection Survey,Parity Resources Limited,229157,"2,395.04",Information Management Services,Large,Programme Expenditure
UK Statistics Family,Office for National Statistics,18/05/2022,Exp - Short-Term Contract & Agency Staff - Full Cost,Recruitment ,Parity Resources Limited,229157,558.36,Information Management Services,Large,Programme Expenditure
UK Statistics Family,Office for National Statistics,18/05/2022,Exp - Purchase Of Goods/Services - Contractors,CDIO UNGP,Parity Resources Limited,229157,"8,280.90",Information Management Services,Large,Programme Expenditure
UK Statistics Family,Office for National Statistics,18/05/2022,Exp - Purchase Of Goods/Services - Contractors,Strategy And Architecture,Parity Resources Limited,229157,"14,315.70",Information Management Services,Large,Programme Expenditure
UK Statistics Family,Office for National Statistics,18/05/2022,Exp - Purchase Of Goods/Services - Contractors,IT Applications,Parity Resources Limited,229157,5446.8,Information Management Services,Large,Programme Expenditure
UK Statistics Family,Office for National Statistics,18/05/2022,Exp - Purchase Of Goods/Services - Contractors,IT Operations,Parity Resources Limited,229157,"9,759.30",Information Management Services,Large,Programme Expenditure
UK Statistics Family,Office for National Statistics,18/05/2022,Surveys,International Trade And Transactions,Ascent Digital Services UK Ltd,229160,"17,952.00",Information Management Services,SME,Programme Expenditure
UK Statistics Family,Office for National Statistics,18/05/2022,Surveys,International Trade And Transactions,Ascent Digital Services UK Ltd,229160,"36,312.00",Information Management Services,SME,Programme Expenditure
UK Statistics Family,Office for National Statistics,18/05/2022,Exp - Purchase Of Goods/Services - IT Contractual Services,Tech Delivery Legacy Sp,CTS (Cloud Technology Solutions Ltd),229163,"166,433.22",Information Management Services,Large,Programme Expenditure
UK Statistics Family,Office for National Statistics,18/05/2022,End User Software And Hardware,Digital Delivery,Armakuni Ltd,229165,"34,320.00",Information Management Services,SME,Programme Expenditure
UK Statistics Family,Office for National Statistics,19/05/2022,EXP - PURCHASE OF GOODS/SERVICES -  NON IT CONTRACTUAL PAYMENTS,Census & Soc Methodology Dd,University of Southampton,229534,"77,151.40",Training and Educational Services,SME,Programme Expenditure
UK Statistics Family,Office for National Statistics,19/05/2022,"ICT Outsourcing, Maintenance And Support",Covid Infection Survey,Equiniti Limited,229541,"17,993.87",Information Management Services,Large,Programme Expenditure
UK Statistics Family,Office for National Statistics,19/05/2022,"ICT Outsourcing, Maintenance And Support",Researcher Support And Data Access ,Equiniti Limited,229541,160551.36,Information Management Services,Large,Programme Expenditure
UK Statistics Family,Office for National Statistics,19/05/2022,Hosting,IT Operations,Equiniti Limited,229541,"51,041.75",Information Management Services,Large,Programme Expenditure
UK Statistics Family,Office for National Statistics,19/05/2022,Exp - Purchase Of Goods/Services - Contractors,Data Architecture,Certes Computing Ltd,229543,"3,599.64",Information Management Services,SME,Programme Expenditure
UK Statistics Family,Office for National Statistics,19/05/2022,Exp - Purchase Of Goods/Services - Contractors,Strategy And Architecture,Certes Computing Ltd,229543,"15,300.00",Information Management Services,SME,Programme Expenditure
UK Statistics Family,Office for National Statistics,19/05/2022,Exp - Purchase Of Goods/Services - Contractors,Strategy And Architecture,Certes Computing Ltd,229543,12441,Information Management Services,SME,Programme Expenditure
UK Statistics Family,Office for National Statistics,19/05/2022,Accommodation & Building Management,Property Titchfield,Fareham Borough Council,229546,"412,160.00",Non-domestic Rates,Large,Programme Expenditure
UK Statistics Family,Office for National Statistics,19/05/2022,"ICT Outsourcing, Maintenance And Support",Digital Media,Amazon Web Services Inc,229552,"12,040.11",Information Management Services,Large,Programme Expenditure
UK Statistics Family,Office for National Statistics,19/05/2022,Hosting,CLOUD ARCHITECTURE,Amazon Web Services Inc,229552,"209,303.34",Information Management Services,Large,Programme Expenditure
UK Statistics Family,Office for National Statistics,19/05/2022,Hosting,CDIO UNGP,Amazon Web Services Inc,229552,"-2,939.93",Information Management Services,Large,Programme Expenditure
UK Statistics Family,Office for National Statistics,19/05/2022,Exp - Purchase Of Goods And Services Consultants,Digital Media,Methods Business & Digital Technology Ltd,229553,"105,927.00",Information Management Services,Large,Programme Expenditure
UK Statistics Family,Office for National Statistics,19/05/2022,Exp - Purchase Of Goods/Services - Incentive Payments,Survey Management,Sodexo Motivation Solutions U.K. ltd,229554,384.93,Survey Response Incentive Vouchers,Large,Programme Expenditure
UK Statistics Family,Office for National Statistics,19/05/2022,Exp - Purchase Of Goods/Services - Incentive Payments,Survey Management,Sodexo Motivation Solutions U.K. ltd,229554,"4,099.13",Survey Response Incentive Vouchers,Large,Programme Expenditure
UK Statistics Family,Office for National Statistics,19/05/2022,Exp - Purchase Of Goods/Services - Incentive Payments,Survey Management,Sodexo Motivation Solutions U.K. ltd,229554,"3,323.44",Survey Response Incentive Vouchers,Large,Programme Expenditure
UK Statistics Family,Office for National Statistics,19/05/2022,Exp - Purchase Of Goods/Services - Incentive Payments,Survey Management,Sodexo Motivation Solutions U.K. ltd,229554,3492.57,Survey Response Incentive Vouchers,Large,Programme Expenditure
UK Statistics Family,Office for National Statistics,19/05/2022,Exp - Purchase Of Goods/Services - Incentive Payments,Survey Management,Sodexo Motivation Solutions U.K. ltd,229554,"11,818.05",Survey Response Incentive Vouchers,Large,Programme Expenditure
UK Statistics Family,Office for National Statistics,19/05/2022,Exp - Purchase Of Goods/Services - Incentive Payments,Social Survey Transformation Newport,Sodexo Motivation Solutions U.K. ltd,229554,15573.78,Survey Response Incentive Vouchers,Large,Programme Expenditure
UK Statistics Family,Office for National Statistics,19/05/2022,Exp - Purchase Of Goods/Services - Incentive Payments,GSS Strategy Delivery,Sodexo Motivation Solutions U.K. ltd,229554,"1,125.10",Survey Response Incentive Vouchers,Large,Programme Expenditure
UK Statistics Family,Office for National Statistics,19/05/2022,Exp - Purchase Of Goods/Services - Incentive Payments,Strategy And Engagement,Sodexo Motivation Solutions U.K. ltd,229554,"4,066.44",Survey Response Incentive Vouchers,Large,Programme Expenditure
UK Statistics Family,Office for National Statistics,19/05/2022,Telecoms,IT Operations,Cdw Limited,229556,"35,536.80",Information Management Services,Large,Programme Expenditure
UK Statistics Family,Office for National Statistics,20/05/2022,Accommodation & Building Management,Property Newport,Newport City Council,229559,"1,027,200.00",Non-domestic Rates,Large,Programme Expenditure
UK Statistics Family,Office for National Statistics,20/05/2022,Shared Site Accommodation Ogds,Property Newport,Intellectual Property Office,229560,"53,987.00",Property Maintenance,Large,Programme Expenditure
UK Statistics Family,Office for National Statistics,20/05/2022,Buildings Under Construction,Property Newport,Vinci Construction UK Limited,229562,"148,795.86",Facilities Mangement Services,Large,Programme Expenditure
UK Statistics Family,Office for National Statistics,20/05/2022,Travel And Subsistence,Corporate Centre,Corporate Travel Management ,229565,"28,186.18",Travel and Accommodation,SME,Programme Expenditure
UK Statistics Family,Office for National Statistics,20/05/2022,Exp - Purchase Of Goods/Services - Contractors,Testing,La International,229571,"2,658.70",Information Management Services,SME,Programme Expenditure
UK Statistics Family,Office for National Statistics,20/05/2022,Exp - Purchase Of Goods/Services - Contractors,Testing,La International,229571,443.11,Information Management Services,SME,Programme Expenditure
UK Statistics Family,Office for National Statistics,20/05/2022,Exp - Purchase Of Goods/Services - Contractors,Testing,La International,229571,443.13,Information Management Services,SME,Programme Expenditure
UK Statistics Family,Office for National Statistics,20/05/2022,Exp - Purchase Of Goods/Services - Contractors,INTEGRATED DATA STRATEGY AND DELIVERY,La International,229571,"18,630.00",Information Management Services,SME,Programme Expenditure
UK Statistics Family,Office for National Statistics,20/05/2022,Exp - Purchase Of Goods/Services - Contractors,Tech Delivery Data As A Platform,La International,229571,"4,165.02",Information Management Services,SME,Programme Expenditure
UK Statistics Family,Office for National Statistics,20/05/2022,Exp - Purchase Of Goods/Services - Contractors,Tech Delivery Data As A Platform,La International,229571,"7,166.12",Information Management Services,SME,Programme Expenditure
UK Statistics Family,Office for National Statistics,20/05/2022,Exp - Purchase Of Goods/Services - Contractors,IT Applications,La International,229571,"9,252.66",Information Management Services,SME,Programme Expenditure
UK Statistics Family,Office for National Statistics,20/05/2022,Exp - Purchase Of Goods/Services - Contractors,IT Operations,La International,229571,"3,075.70",Information Management Services,SME,Programme Expenditure
UK Statistics Family,Office for National Statistics,20/05/2022,Exp - Purchase Of Goods/Services - Incentive Payments,Survey Management,Sodexo Motivation Solutions U.K. ltd,229578,"46,296.00",Survey Response Incentive Vouchers,Large,Programme Expenditure
UK Statistics Family,Office for National Statistics,20/05/2022,Exp - Purchase Of Goods/Services - Incentive Payments,Covid Infection Survey,Sodexo Motivation Solutions U.K. ltd,229578,"112,020.30",Survey Response Incentive Vouchers,Large,Programme Expenditure
UK Statistics Family,Office for National Statistics,20/05/2022,Exp - Purchase Of Goods/Services - Incentive Payments,Survey Management,Sodexo Motivation Solutions U.K. ltd,229578,"27,502.11",Survey Response Incentive Vouchers,Large,Programme Expenditure
UK Statistics Family,Office for National Statistics,20/05/2022,Exp - Purchase Of Goods/Services - Contractors,Business Architecture,LA FOSSE ASSOCIATES LIMITED,229579,"3,240.00",Information Management Services,Large,Programme Expenditure
UK Statistics Family,Office for National Statistics,20/05/2022,Exp - Purchase Of Goods/Services - Contractors,Digital Publishing,LA FOSSE ASSOCIATES LIMITED,229579,"28,710.00",Information Management Services,Large,Programme Expenditure
UK Statistics Family,Office for National Statistics,20/05/2022,Exp - Seconded UK Staff - Basic Salary,Overseas Development,"Foreign, Commonwealth & Development Office",229582,"3,816.89",Seconded Staff,Large,Programme Expenditure
UK Statistics Family,Office for National Statistics,20/05/2022,Travel And Subsistence,Overseas Development,"Foreign, Commonwealth & Development Office",229582,"243,292.84",FCDO Platform Charges,Large,Programme Expenditure
UK Statistics Family,Office for National Statistics,20/05/2022,Other Goods And Services,Security And Information Management Saim,Cabinet Office,229585,"65,382.42",Fast Stream Services,Large,Programme Expenditure
UK Statistics Family,Office for National Statistics,23/05/2022,Exp - Purchase Of Goods/Services - Contractors,Data Architecture,Empiric Solutions Limited,229798,"26,358.00",Information Management Services,Large,Programme Expenditure
UK Statistics Family,Office for National Statistics,23/05/2022,Postage,Property Titchfield,Pitney Bowes Ltd,229800,"146,761.57",Postage Services,Large,Programme Expenditure
UK Statistics Family,Office for National Statistics,23/05/2022,Exp - Purchase Of Goods/Services - IT Contractual Services,Strategy And Architecture,Ibm United Kingdom Ltd,229801,"81,648.00",Information Management Services,Large,Programme Expenditure
UK Statistics Family,Office for National Statistics,23/05/2022,Exp - Purchase Of Goods/Services - Contractors,Consultancy Management,Certes Computing Ltd,229802,"13,035.17",Information Management Services,SME,Programme Expenditure
UK Statistics Family,Office for National Statistics,23/05/2022,Exp - Purchase Of Goods/Services - Contractors,Data Architecture,Certes Computing Ltd,229802,"10,798.92",Information Management Services,SME,Programme Expenditure
UK Statistics Family,Office for National Statistics,23/05/2022,Exp - Purchase Of Goods/Services - Contractors,IT Operations,Certes Computing Ltd,229802,"14,483.52",Information Management Services,SME,Programme Expenditure
UK Statistics Family,Office for National Statistics,23/05/2022,Exp - Purchase Of Goods/Services - Contractors,Business Architecture,La International,229803,"4,491.18",Information Management Services,SME,Programme Expenditure
UK Statistics Family,Office for National Statistics,23/05/2022,Exp - Purchase Of Goods/Services - Contractors,Testing,La International,229803,"3,981.18",Information Management Services,SME,Programme Expenditure
UK Statistics Family,Office for National Statistics,23/05/2022,Exp - Purchase Of Goods/Services - Contractors,Consultancy Management,La International,229803,"3,588.30",Information Management Services,SME,Programme Expenditure
UK Statistics Family,Office for National Statistics,23/05/2022,Exp - Purchase Of Goods/Services - Contractors,Digital Publishing,La International,229803,3593.4,Information Management Services,SME,Programme Expenditure
UK Statistics Family,Office for National Statistics,23/05/2022,Exp - Purchase Of Goods/Services - Contractors,IT Applications,La International,229803,"10,745.60",Information Management Services,SME,Programme Expenditure
UK Statistics Family,Office for National Statistics,23/05/2022,Exp - Purchase Of Goods/Services - Contractors,Programme Delivery,Malikshaw Interim & Executive,229806,"13,680.00",Information Management Services,SME,Programme Expenditure
UK Statistics Family,Office for National Statistics,23/05/2022,Exp - Purchase Of Goods/Services - Contractors,Digital Publishing,Malikshaw Interim & Executive,229806,15126.67,Information Management Services,SME,Programme Expenditure
UK Statistics Family,Office for National Statistics,23/05/2022,Exp - Purchase Of Goods/Services - Contractors,Data Architecture,Malikshaw Interim & Executive,229806,"9,172.80",Information Management Services,SME,Programme Expenditure
UK Statistics Family,Office for National Statistics,23/05/2022,Telecoms,IT Operations,Bt Global Services,229811,51568.88,Telecommunications,Large,Programme Expenditure
UK Statistics Family,Office for National Statistics,24/05/2022,End User Software And Hardware,IT Operations,Scc,229822,"110,496.00",Software Licenses,Large,Programme Expenditure
UK Statistics Family,Office for National Statistics,24/05/2022,Travel And Subsistence,Corporate Centre,Corporate Travel Management ,229823,"29,620.39",Travel and Accommodation,SME,Programme Expenditure
UK Statistics Family,Office for National Statistics,24/05/2022,Exp - Purchase Of Goods/Services - Contractors,Security Advisory,Parity Resources Limited,229836,27727.2,Information Management Services,Large,Programme Expenditure
UK Statistics Family,Office for National Statistics,24/05/2022,Exp - Purchase Of Goods/Services - Contractors,IT Operations,Parity Resources Limited,229836,"4,210.50",Information Management Services,Large,Programme Expenditure
UK Statistics Family,Office for National Statistics,24/05/2022,Exp - Purchase Of Goods/Services - Contractors,Digital Delivery,Parity Resources Limited,229836,"3,096.00",Information Management Services,Large,Programme Expenditure
UK Statistics Family,Office for National Statistics,25/05/2022,Exp - Purchase Of Goods/Services - Training & Development - Seminar & Conference Fees,Business Architecture Transformation And Statistical Strategy,KPMG LLP,229846,"5,768.00",Training and Educational Services,SME,Programme Expenditure
UK Statistics Family,Office for National Statistics,25/05/2022,Training & Development,Learning And Capability,KPMG LLP,229846,"21,088.00",Training and Educational Services,SME,Programme Expenditure
UK Statistics Family,Office for National Statistics,25/05/2022,Plant & Machinery At Cost - Additions,Property Services,Pitney Bowes Ltd,229849,"3,699.60",Postage Services,Large,Programme Expenditure
UK Statistics Family,Office for National Statistics,25/05/2022,Other Goods And Services,Ask Business Services,Pitney Bowes Ltd,229849,"44,229.66",Postage Services,Large,Programme Expenditure
UK Statistics Family,Office for National Statistics,25/05/2022,Non IT Maintenance And Hire,Ask Business Services,Pitney Bowes Ltd,229849,"17,164.80",Postage Services,Large,Programme Expenditure
UK Statistics Family,Office for National Statistics,25/05/2022,Exp - Purchase Of Goods/Services - Contractors,Testing,La International,229852,"4,281.18",Information Management Services,SME,Programme Expenditure
UK Statistics Family,Office for National Statistics,25/05/2022,Exp - Purchase Of Goods/Services - Contractors,STRATEGY SYNTHESIS AND CO-ORDINATION,La International,229852,"2,525.52",Information Management Services,SME,Programme Expenditure
UK Statistics Family,Office for National Statistics,25/05/2022,Exp - Purchase Of Goods/Services - Contractors,Data Architecture,La International,229852,"7,166.12",Information Management Services,SME,Programme Expenditure
UK Statistics Family,Office for National Statistics,25/05/2022,Exp - Purchase Of Goods/Services - Contractors,Data Architecture,La International,229852,"11,131.06",Information Management Services,SME,Programme Expenditure
UK Statistics Family,Office for National Statistics,25/05/2022,Exp - Purchase Of Goods/Services - Contractors,CLOUD ARCHITECTURE,La International,229852,"3,844.62",Information Management Services,SME,Programme Expenditure
UK Statistics Family,Office for National Statistics,25/05/2022,Exp - Seconded UK Staff - Basic Salary,Internal Audit,Bank of England,229857,"37,361.32",Seconded Staff,Large,Programme Expenditure
UK Statistics Family,Office for National Statistics,25/05/2022,Exp - Purchase Of Goods/Services - Contractors,Data Architecture,Malikshaw Interim & Executive,229858,"18,878.40",Information Management Services,SME,Programme Expenditure
UK Statistics Family,Office for National Statistics,25/05/2022,Exp - Purchase Of Goods/Services - Contractors,Data As A Service,Malikshaw Interim & Executive,229858,"14,457.60",Information Management Services,SME,Programme Expenditure
UK Statistics Family,Office for National Statistics,25/05/2022,Exp - Purchase Of Goods/Services - Contractors,Data Architecture,LA FOSSE ASSOCIATES LIMITED,229862,"47,160.00",Information Management Services,Large,Programme Expenditure
UK Statistics Family,Office for National Statistics,25/05/2022,Exp - Purchase Of Goods/Services - Contractors,Data Architecture,LA FOSSE ASSOCIATES LIMITED,229862,"30,960.00",Information Management Services,Large,Programme Expenditure
UK Statistics Family,Office for National Statistics,25/05/2022,Exp - Purchase Of Goods/Services - Contractors,Covid Infection Survey,Parity Resources Limited,229865,"3,592.56",Information Management Services,Large,Programme Expenditure
UK Statistics Family,Office for National Statistics,25/05/2022,Exp - Short-Term Contract & Agency Staff - Full Cost,Recruitment ,Parity Resources Limited,229865,732.60,Information Management Services,Large,Programme Expenditure
UK Statistics Family,Office for National Statistics,25/05/2022,Exp - Purchase Of Goods/Services - Contractors,CLOUD ARCHITECTURE,Parity Resources Limited,229865,686.1,Information Management Services,Large,Programme Expenditure
UK Statistics Family,Office for National Statistics,25/05/2022,Exp - Purchase Of Goods/Services - Contractors,IT Operations,Parity Resources Limited,229865,15459.9,Information Management Services,Large,Programme Expenditure
UK Statistics Family,Office for National Statistics,25/05/2022,Exp - Purchase Of Goods/Services - Contractors,Data Science Campus,Parity Resources Limited,229865,6621,Information Management Services,Large,Programme Expenditure
UK Statistics Family,Office for National Statistics,26/05/2022,Surveys,Crime Statistics,Kantar Public UK Ltd.,230122,474045.9,Statistical Services,SME,Programme Expenditure
UK Statistics Family,Office for National Statistics,26/05/2022,Exp - Purchase Of Goods/Services - Incentive Payments,Social Surveys Division,Natcen Social Research,230123,"30,294.60",Statistical Services,Large,Programme Expenditure
UK Statistics Family,Office for National Statistics,26/05/2022,Exp - Purchase Of Goods/Services - Contractors,Testing,La International,230128,"5,125.35",Information Management Services,SME,Programme Expenditure
UK Statistics Family,Office for National Statistics,26/05/2022,Exp - Purchase Of Goods/Services - Contractors,Testing,La International,230128,"2,162.60",Information Management Services,SME,Programme Expenditure
UK Statistics Family,Office for National Statistics,26/05/2022,Exp - Purchase Of Goods/Services - Contractors,Testing,La International,230128,"2,162.62",Information Management Services,SME,Programme Expenditure
UK Statistics Family,Office for National Statistics,26/05/2022,Exp - Purchase Of Goods/Services - Contractors,Testing,La International,230128,"3,470.85",Information Management Services,SME,Programme Expenditure
UK Statistics Family,Office for National Statistics,26/05/2022,Exp - Purchase Of Goods/Services - Contractors,Researcher Support And Data Access ,La International,230128,"2,993.40",Information Management Services,SME,Programme Expenditure
UK Statistics Family,Office for National Statistics,26/05/2022,Exp - Purchase Of Goods/Services - Contractors,Data Architecture,La International,230128,"10,778.84",Information Management Services,SME,Programme Expenditure
UK Statistics Family,Office for National Statistics,26/05/2022,Exp - Purchase Of Goods/Services - Contractors,Data Architecture,La International,230128,"11,567.30",Information Management Services,SME,Programme Expenditure
UK Statistics Family,Office for National Statistics,26/05/2022,Exp - Purchase Of Goods/Services - Contractors,CLOUD ARCHITECTURE,La International,230128,833.00,Information Management Services,SME,Programme Expenditure
UK Statistics Family,Office for National Statistics,26/05/2022,Exp - Purchase Of Goods/Services - Contractors,IT Operations,La International,230128,"3,844.62",Information Management Services,SME,Programme Expenditure
UK Statistics Family,Office for National Statistics,26/05/2022,Exp - Seconded UK Staff - Basic Salary,Prices Division,Bank of England,230130,"33,350.76",Seconded Staff,Large,Programme Expenditure
UK Statistics Family,Office for National Statistics,26/05/2022,Exp - Purchase Of Goods/Services - Contractors,Data Architecture,Malikshaw Interim & Executive,230131,"16,560.00",Information Management Services,SME,Programme Expenditure
UK Statistics Family,Office for National Statistics,26/05/2022,Exp - Purchase Of Goods/Services - Contractors,Data Architecture,Malikshaw Interim & Executive,230131,"20,092.80",Information Management Services,SME,Programme Expenditure
UK Statistics Family,Office for National Statistics,26/05/2022,Exp - Purchase Of Goods/Services - Contractors,Data Science Campus,Malikshaw Interim & Executive,230131,"15,724.80",Information Management Services,SME,Programme Expenditure
UK Statistics Family,Office for National Statistics,26/05/2022,Exp - Purchase Of Goods/Services - Incentive Payments,Covid Infection Survey,Sodexo Motivation Solutions U.K. ltd,230135,"1,697.80",Survey Response Incentive Vouchers,Large,Programme Expenditure
UK Statistics Family,Office for National Statistics,26/05/2022,Exp - Purchase Of Goods/Services - Incentive Payments,Covid Infection Survey,Sodexo Motivation Solutions U.K. ltd,230135,"106,725.95",Survey Response Incentive Vouchers,Large,Programme Expenditure
UK Statistics Family,Office for National Statistics,26/05/2022,Exp - Purchase Of Goods/Services - Incentive Payments,GSS Strategy Delivery,Sodexo Motivation Solutions U.K. ltd,230135,207.27,Survey Response Incentive Vouchers,Large,Programme Expenditure
UK Statistics Family,Office for National Statistics,26/05/2022,Exp - Purchase Of Goods/Services - Incentive Payments,Strategy And Engagement,Sodexo Motivation Solutions U.K. ltd,230135,345.45,Survey Response Incentive Vouchers,Large,Programme Expenditure
UK Statistics Family,Office for National Statistics,26/05/2022,Exp - Purchase Of Goods/Services - Incentive Payments,Best Practice And Impact,Sodexo Motivation Solutions U.K. ltd,230135,64.14,Survey Response Incentive Vouchers,Large,Programme Expenditure
UK Statistics Family,Office for National Statistics,26/05/2022,Exp - Purchase Of Goods/Services - Contractors,Data Architecture,SmartSourcing Ltd,230136,"47,691.84",Information Management Services,SME,Programme Expenditure
UK Statistics Family,Office for National Statistics,26/05/2022,Exp - Purchase Of Goods/Services - IT Contractual Services,Digital Publishing,Armakuni Ltd,230137,"134,880.00",Information Management Services,SME,Programme Expenditure
UK Statistics Family,Office for National Statistics,26/05/2022,Exp - Short-Term Contract & Agency Staff - Full Cost,Business Architecture Transformation And Statistical Strategy,Parity Resources Limited,230138,"3,310.50",Information Management Services,Large,Programme Expenditure
UK Statistics Family,Office for National Statistics,26/05/2022,Exp - Purchase Of Goods/Services - Contractors,Data Architecture,Parity Resources Limited,230138,"40,408.20",Information Management Services,Large,Programme Expenditure
UK Statistics Family,Office for National Statistics,26/05/2022,Exp - Purchase Of Goods/Services - Contractors,Digital Publishing,Talent International,230142,"18,630.00",Information Management Services,SME,Programme Expenditure
UK Statistics Family,Office for National Statistics,26/05/2022,Exp - Short-Term Contract & Agency Staff - Full Cost,Data Architecture,Talent International,230142,"3,008.54",Information Management Services,SME,Programme Expenditure
UK Statistics Family,Office for National Statistics,26/05/2022,Exp - Purchase Of Goods/Services - Contractors,Data Architecture,Talent International,230142,"20,672.40",Information Management Services,SME,Programme Expenditure
UK Statistics Family,Office for National Statistics,27/05/2022,FM Contract Payments,Property London,Tandem Property Asset Management LLP,230145,"55,008.00",Rental Charges,Large,Programme Expenditure
UK Statistics Family,Office for National Statistics,27/05/2022,FM Contract Payments,Vinci Payments,Vinci Construction UK Limited,230147,"338,802.18",Facilities Mangement Services,Large,Programme Expenditure
UK Statistics Family,Office for National Statistics,27/05/2022,Exp - Purchase Of Goods/Services - Contractors,2023 CENSUS DATA TRANSFORMATION,Certes Computing Ltd,230153,"3,672.14",Information Management Services,SME,Programme Expenditure
UK Statistics Family,Office for National Statistics,27/05/2022,Exp - Purchase Of Goods/Services - Contractors,Data Architecture,Certes Computing Ltd,230153,25705,Information Management Services,SME,Programme Expenditure
UK Statistics Family,Office for National Statistics,27/05/2022,Training & Development,Learning And Capability,Ernst & Young LLP,230156,"26,078.40",Training and Educational Services,Large,Programme Expenditure
UK Statistics Family,Office for National Statistics,27/05/2022,Exp - Purchase Of Goods/Services - Contractors,Data Architecture,Malikshaw Interim & Executive,230160,12240,Information Management Services,SME,Programme Expenditure
UK Statistics Family,Office for National Statistics,27/05/2022,Exp - Purchase Of Goods/Services - Contractors,Data Architecture,Malikshaw Interim & Executive,230160,"20,092.80",Information Management Services,SME,Programme Expenditure
UK Statistics Family,Office for National Statistics,27/05/2022,Exp - Purchase Of Goods/Services - IT Contractual Services,IT Applications,Diegesis Limited,230162,"194,130.00",Information Management Services,Large,Programme Expenditure
UK Statistics Family,Office for National Statistics,27/05/2022,Rent Payable,Property London,Tandem Property Asset Management LLP,230164,"243,432.00",Rental Charges,Large,Programme Expenditure
UK Statistics Family,Office for National Statistics,10/05/2022,Exp - Purchase Of Goods/Services - Incentive Payments,Covid Infection Survey,Sodexo Motivation Solutions U.K. ltd,30003459,"1,461,193.56",Survey Response Incentive Vouchers,Large,Programme Expenditure
UK Statistics Family,Office for National Statistics,11/05/2022,Stationery,Lodgecard,Royal Bank of Scotland,30003462,611.14,Multiple Procurement Card Purchases  - Stationery ,Large,Programme Expenditure
UK Statistics Family,Office for National Statistics,11/05/2022,Other Goods And Services,GPC,Royal Bank of Scotland,30003462,"58,710.31",Multiple Procurement Card Purchases - other goods/services  ,Large,Programme Expenditure
UK Statistics Family,Office for National Statistics,11/05/2022,Travel And Subsistence,Car Hire,Royal Bank of Scotland,30003462,"26,786.52",Multiple Procurement Card Purchases - Vehicle Hire  ,Large,Programme Expenditure
UK Statistics Family,Office for National Statistics,16/05/2022,Exp - Purchase Of Goods/Services - Incentive Payments,Covid Infection Survey,Sodexo Motivation Solutions U.K. ltd,30003470,"1,347,137.18",Survey Response Incentive Vouchers,Large,Programme Expenditure
UK Statistics Family,Office for National Statistics,19/05/2022,Electricity,Property Services,Edf Energy,30003476,"28,082.35",Utility Charges,Large,Programme Expenditure
UK Statistics Family,Office for National Statistics,19/05/2022,Electricity,Property Newport,Edf Energy,30003476,-625.98,Utility Charges,Large,Programme Expenditure
UK Statistics Family,Office for National Statistics,19/05/2022,Hosting,Digital Publishing,Cloudflare ,30003478,"70,000.00",Software Licenses,Large,Programme Expenditure
UK Statistics Family,Office for National Statistics,24/05/2022,Exp - Purchase Of Goods And Services Consultancy,Overseas Development,The United Nations Population Fund,30003482,"68,456.29",Consultancy,Large,Programme Expenditure
UK Statistics Family,Office for National Statistics,24/05/2022,Exp - Purchase Of Goods/Services - Incentive Payments,Covid Infection Survey,Sodexo Motivation Solutions U.K. ltd,30003487,"1,322,053.82",Survey Response Incentive Vouchers,Large,Programme Expenditure
UK Statistics Family,Office for National Statistics,25/05/2022,Surveys,Covid Infection Survey,IQVIA Limited,30003488,"3,962,202.64",Statistical Services,Large,Programme Expenditure
UK Statistics Family,Office for National Statistics,27/05/2022,Exp - Purchase Of Goods/Services - Incentive Payments,Covid Infection Survey,Sodexo Motivation Solutions U.K. ltd,30003496,"1,300,111.47",Survey Response Incentive Vouchers,Large,Programme Expenditure
UK Statistics Family,Office for National Statistics,31/05/2022,Exp - Purchase Of Goods And Services Consultants,Digital Publishing,Methods Business & Digital Technology Ltd,30003501,2654.15,Information Management Services,Large,Programme Expenditure
UK Statistics Family,Office for National Statistics,31/05/2022,Exp - Purchase Of Goods And Services Consultants,Digital Media,Methods Business & Digital Technology Ltd,30003501,"986,950.70",Information Management Services,Large,Programme Expenditure
UK Statistics Family,Office for National Statistics,31/05/2022,Travel And Subsistence,Corporate Centre,Corporate Travel Management ,30003502,"40,780.07",Travel and Accommodation,SME,Programme Expenditure
UK Statistics Family,Office for National Statistics,31/05/2022,Telecoms,IT Operations,Vodafone Corporate Ltd,30003503,"29,502.87",Telecommunications,Large,Programme Expenditure
UK Statistics Family,Office for National Statistics,31/05/2022,Surveys,Covid Infection Survey,IQVIA Limited,30003504,1291320,Statistical Services,Large,Programme Expenditure
UK Statistics Family,Office for National Statistics,31/05/2022,Exp - Purchase Of Goods/Services - Contractors,Digital Publishing,Talent International,30003505,"16,532.40",Information Management Services,SME,Programme Expenditure
UK Statistics Family,Office for National Statistics,31/05/2022,Exp - Short-Term Contract & Agency Staff - Full Cost,Data Architecture,Talent International,30003505,"3,008.54",Information Management Services,SME,Programme Expenditure
UK Statistics Family,Office for National Statistics,31/05/2022,Exp - Purchase Of Goods/Services - Contractors,Data Architecture,Talent International,30003505,"18,239.77",Information Management Services,SME,Programme Expenditure
UK Statistics Family,Office for National Statistics,31/05/2022,Exp - Purchase Of Goods/Services - IT Contractual Services,CDIO UNGP,CTS (Cloud Technology Solutions Ltd),30003506,"162,000.00",Information Management Services,Large,Programme Expenditure
UK Statistics Family,Office for National Statistics,31/05/2022,Hosting,CDIO UNGP,CTS (Cloud Technology Solutions Ltd),30003506,"129,600.00",Information Management Services,Large,Programme Expenditure
UK Statistics Family,Office for National Statistics,31/05/2022,Hosting,CLOUD ARCHITECTURE,Amazon Web Services Inc,30003507,"129,889.17",Information Management Services,Large,Programme Expenditure
UK Statistics Family,Office for National Statistics,31/05/2022,Hosting,IT Operations,Amazon Web Services Inc,30003507,"97,030.60",Information Management Services,Large,Programme Expenditure
,,,,,,,"25,697,391.67",,,
